bitfinex-derivatives/quotes_SOLF0:USTF0_20250309
["timestamp","ask_amount","ask_price","bid_price","bid_amount"]
[1741564504957,34.86,126.71,126.69,0.05957652]
[1741564505858,7.894,126.7,126.69,0.05957652]
[1741564506661,7.8959,126.67,126.62,264.6313]
[1741564506961,34.86,126.66,126.62,264.6313]
[1741564507662,0.04989554,126.65,126.63,0.05253885]
[1741564507869,34.86,126.69,126.63,0.05253885]
[1741564508063,34.86,126.69,126.62,284.8320686]
[1741564509072,0.05128152,126.67,126.64,0.05106828]
[1741564509968,7.94728152,126.67,126.64,0.05106828]
[1741564510168,0.05128152,126.67,126.64,0.05106828]
[1741564510368,0.05128152,126.67,126.64,20.25183688]
[1741564511666,0.05128152,126.67,126.66,7.8965]
[1741564512470,34.84,126.71,126.66,20.2007686]
[1741564512866,7.894,126.7,126.66,28.0970686]
[1741564513272,4.1503,126.74,126.66,20.2007686]
[1741564513572,34.84,126.74,126.69,7.8945]
[1741564513774,34.84,126.74,126.68,20.2007686]
[1741564513969,7.8927,126.73,126.7,0.05349282]
[1741564514371,4.0565,126.77,126.71,7.8932]
[1741564514569,4.0565,126.77,126.7,280.6607686]
[1741564514762,34.84,126.76,126.73,0.05346942]
[1741564514969,42.7299,126.77,126.73,0.05346942]
[1741564516379,42.7299,126.77,126.74,7.8913]
[1741564516577,34.84,126.77,126.73,0.05346942]
[1741564516773,55.0407686,126.77,126.73,0.05346942]
[1741564516976,55.0407686,126.77,126.65,20.2007686]
[1741564516977,7.8944,126.7,126.65,20.2007686]
[1741564517176,34.82,126.71,126.65,20.2007686]
[1741564517377,34.82,126.71,126.68,7.8948]
[1741564517774,34.82,126.71,126.66,4.1432]
[1741564518173,0.06024407,126.7,126.67,0.05624477]
[1741564518379,7.95464407,126.7,126.67,7.95194477]
[1741564518682,0.06024407,126.7,126.67,0.05624477]
[1741564519274,7.8953,126.68,126.67,0.05624477]
[1741564521580,7.95444407,126.7,126.67,0.05624477]
[1741564522374,34.82,126.69,126.67,0.05624477]
[1741564524789,42.7149,126.69,126.67,0.05624477]
[1741564525088,34.82,126.69,126.67,0.05624477]
[1741564525480,0.06024407,126.7,126.67,0.05624477]
[1741564525885,0.06024407,126.7,126.68,7.8953]
[1741564526086,0.06024407,126.7,126.67,0.05624477]
[1741564526481,7.8947,126.69,126.67,0.05624477]
[1741564527081,7.8953,126.68,126.67,0.05624477]
[1741564528181,192.0,126.69,126.6,4.1432]
[1741564528389,192.0,126.68,126.6,4.1432]
[1741564528584,7.8981,126.64,126.6,7.8998]
[1741564529083,34.8,126.63,126.6,7.8998]
[1741564529282,34.8570223,126.63,126.62,7.899]
[1741564529482,34.8570223,126.63,126.61,0.05070433]
[1741564530088,34.8570223,126.63,126.62,7.899]
[1741564530590,34.8570223,126.63,126.61,7.95000433]
[1741564531190,34.8570223,126.63,126.61,0.05070433]
[1741564531988,34.8570223,126.63,126.61,7.94990433]
[1741564532188,34.8570223,126.63,126.61,0.05070433]
[1741564532388,34.8570223,126.63,126.62,7.899]
[1741564534291,34.8570223,126.63,126.61,0.05070433]
[1741564535193,7.899,126.62,126.61,0.05070433]
[1741564536190,34.8570223,126.63,126.56,7.9024]
[1741564536389,192.0,126.62,126.5,260.56]
[1741564536594,7.9018,126.58,126.5,260.56]
[1741564536794,34.8,126.57,126.5,264.4288]
[1741564537190,0.05922217,126.55,126.54,7.9036]
[1741564537592,0.05922217,126.55,126.52,0.05208089]
[1741564537797,0.05922217,126.55,126.54,7.904]
[1741564537994,34.8,126.57,126.52,0.05208089]
[1741564538695,34.78,126.6,126.53,32.32588753]
[1741564538905,34.78,126.6,126.58,7.9011]
[1741564539208,34.83581126,126.6,126.58,7.95973503]
[1741564539394,34.83581126,126.6,126.58,0.05863503]
[1741564540102,34.83581126,126.6,126.59,7.9009]
[1741564540300,34.83581126,126.6,126.58,0.05863503]
[1741564541305,34.83581126,126.6,126.58,7.95973503]
[1741564541697,34.83581126,126.6,126.58,0.05863503]
[1741564541896,7.9009,126.59,126.58,0.05863503]
[1741564542197,34.83581126,126.6,126.58,0.05863503]
[1741564542699,7.9009,126.59,126.58,0.05863503]
[1741564545003,34.83581126,126.6,126.58,0.05863503]
[1741564545199,42.73611126,126.6,126.58,0.05863503]
[1741564545605,7.9009,126.59,126.58,0.05863503]
[1741564546406,42.73621126,126.6,126.58,0.05863503]
[1741564546908,7.9009,126.59,126.58,0.05863503]
[1741564547308,34.83581126,126.6,126.51,32.32588753]
[1741564547505,259.10588753,126.6,126.5,264.4288]
[1741564547809,32.32588753,126.57,126.5,260.56]
[1741564548009,7.905,126.53,126.49,7.9068]
[1741564548199,34.78,126.52,126.49,7.9068]
[1741564548396,34.78,126.52,126.44,264.5674]
[1741564548707,34.78,126.52,126.49,0.06074385]
[1741564548909,195.8839,126.56,126.53,7.9046]
[1741564549202,5.35127475,126.59,126.47,32.32588753]
[1741564549203,0.05832063,126.52,126.47,32.32588753]
[1741564549407,34.78,126.56,126.55,7.9031]
[1741564550407,7.9012,126.59,126.57,7.9021]
[1741564550408,34.78,126.59,126.57,7.9021]
[1741564550801,34.83380573,126.59,126.57,7.96153017]
[1741564552101,34.83380573,126.59,126.57,0.05943017]
[1741564552703,0.05380573,126.59,126.58,7.9015]
[1741564552903,0.05380573,126.59,126.57,0.05943017]
[1741564553408,7.95510573,126.59,126.57,0.05943017]
[1741564554212,0.05380573,126.59,126.57,0.05943017]
[1741564555308,0.05380573,126.59,126.57,7.96123017]
[1741564555608,0.05380573,126.59,126.57,0.05943017]
[1741564558611,7.95480573,126.59,126.57,0.05943017]
[1741564559112,7.9015,126.58,126.57,0.05943017]
[1741564559705,0.05380573,126.59,126.53,7.9042]
[1741564559905,7.9028,126.56,126.53,7.9042]
[1741564560108,34.76,126.55,126.52,260.7]
[1741564560307,7.9036,126.55,126.49,3.8399]
[1741564560614,32.32588753,126.64,126.57,7.9015]
[1741564560809,67.08588753,126.61,126.49,3.8399]
[1741564561009,32.32588753,126.58,126.49,3.8399]
[1741564561313,0.05072281,126.56,126.49,3.8399]
[1741564561515,67.08588753,126.55,126.42,294.42154472]
[1741564561714,32.32588753,126.52,126.45,7.9096]
[1741564561911,34.76,126.51,126.45,7.9096]
[1741564562107,38.9989,126.51,126.4,86.18760798]
[1741564562407,38.9989,126.51,126.4,118.51349551]
[1741564562713,0.05257052,126.47,126.45,0.05687254]
[1741564563012,34.76,126.5,126.44,8.1974]
[1741564563217,0.05517294,126.47,126.45,0.0596869]
[1741564563514,0.05517294,126.47,126.46,7.909]
[1741564563709,0.05517294,126.47,126.45,0.0596869]
[1741564564506,34.76,126.46,126.45,0.0596869]
[1741564565111,34.76,126.46,126.4,4.2458]
[1741564565415,34.76,126.46,126.4,12.1584]
[1741564565915,34.76,126.46,126.41,7.912]
[1741564566115,0.05824449,126.45,126.42,0.0512489]
[1741564566521,0.05824449,126.45,126.44,7.9103]
[1741564566815,234.6667,126.5,126.42,0.0512489]
[1741564567116,234.6667,126.5,126.41,34.76]
[1741564567117,226.76,126.5,126.41,34.76]
[1741564567916,0.0571811,126.47,126.44,0.05400375]
[1741564568216,0.0571811,126.47,126.45,7.9092]
[1741564568809,0.0571811,126.47,126.44,0.05400375]
[1741564569615,0.0571811,126.47,126.44,7.96380375]
[1741564570912,34.76,126.46,126.44,0.05400375]
[1741564571516,46.7567,126.46,126.41,7.9121]
[1741564571817,38.8472,126.46,126.39,3.8849]
[1741564572012,38.8472,126.46,126.42,7.9111]
[1741564572317,38.8472,126.46,126.39,3.8849]
[1741564572513,0.05209751,126.44,126.41,0.05782051]
[1741564573216,0.05209751,126.44,126.42,7.9111]
[1741564573916,0.05209751,126.44,126.41,0.05782051]
[1741564574114,0.05209751,126.44,126.43,7.9109]
[1741564575419,0.05209751,126.44,126.41,0.05782051]
[1741564575718,7.96269751,126.44,126.41,0.05782051]
[1741564575915,0.05209751,126.44,126.41,0.05782051]
[1741564576517,7.9109,126.43,126.41,0.05782051]
[1741564576818,34.74,126.42,126.41,0.05782051]
[1741564578011,34.74,126.42,126.41,7.96992051]
[1741564578413,0.05209751,126.44,126.41,0.05782051]
[1741564579022,0.05209751,126.44,126.43,7.9109]
[1741564579913,34.74,126.48,126.47,7.908]
[1741564580310,42.6478,126.48,126.44,7.9099]
[1741564580613,34.74,126.48,126.42,3.9609]
[1741564580815,7.9094,126.46,126.43,7.9107]
[1741564581014,7.96979436,126.46,126.44,0.0552075]
[1741564581215,0.06039436,126.46,126.44,0.0552075]
[1741564582919,0.06039436,126.46,126.45,7.9096]
[1741564585020,0.06039436,126.46,126.44,0.0552075]
[1741564585228,7.96969436,126.46,126.44,0.0552075]
[1741564585525,0.06039436,126.46,126.44,7.9651075]
[1741564585725,0.06039436,126.46,126.44,0.0552075]
[1741564586115,0.06039436,126.46,126.44,7.9651075]
[1741564586718,0.06039436,126.46,126.44,0.0552075]
[1741564586921,0.06039436,126.46,126.45,7.9096]
[1741564587315,0.06039436,126.46,126.44,0.0552075]
[1741564588024,7.96969436,126.46,126.44,0.0552075]
[1741564588221,0.06039436,126.46,126.44,0.0552075]
[1741564588621,0.06039436,126.46,126.45,7.9096]
[1741564588823,0.06039436,126.46,126.44,0.0552075]
[1741564589220,0.06039436,126.46,126.44,7.9652075]
[1741564589425,0.06039436,126.46,126.44,0.0552075]
[1741564589621,7.96979436,126.46,126.44,0.0552075]
[1741564590224,7.96979436,126.46,126.44,7.9655075]
[1741564590625,7.9096,126.45,126.44,0.0552075]
[1741564591425,7.96969436,126.46,126.44,0.0552075]
[1741564591626,0.06039436,126.46,126.44,0.0552075]
[1741564592228,7.96969436,126.46,126.44,0.0552075]
[1741564592432,0.06039436,126.46,126.44,0.0552075]
[1741564593630,7.96939436,126.46,126.44,0.0552075]
[1741564594137,0.06039436,126.46,126.44,0.0552075]
[1741564594434,0.06039436,126.46,126.44,7.9652075]
[1741564595231,0.06039436,126.46,126.44,0.0552075]
[1741564595636,7.96979436,126.46,126.44,0.0552075]
[1741564596437,7.9096,126.45,126.44,0.0552075]
[1741564597034,7.96979436,126.46,126.44,0.0552075]
[1741564597536,0.06039436,126.46,126.44,0.0552075]
[1741564597740,7.9096,126.45,126.44,0.0552075]
[1741564598137,7.96969436,126.46,126.44,0.0552075]
[1741564598338,0.06039436,126.46,126.44,0.0552075]
[1741564599536,7.96949436,126.46,126.44,0.0552075]
[1741564599934,0.06039436,126.46,126.44,0.0552075]
[1741564600640,7.96949436,126.46,126.44,0.0552075]
[1741564605341,0.06039436,126.46,126.44,0.0552075]
[1741564605541,7.9096,126.45,126.44,0.0552075]
[1741564605930,7.96969436,126.46,126.44,0.0552075]
[1741564607538,7.9096,126.45,126.44,0.0552075]
[1741564608246,0.06039436,126.46,126.44,0.0552075]
[1741564609246,0.06039436,126.46,126.45,7.9096]
[1741564611840,34.68,126.5,126.44,0.0552075]
[1741564612042,34.68,126.5,126.42,20.27480197]
[1741564612243,54.95480197,126.5,126.44,7.9102]
[1741564612439,7.9075,126.49,126.44,7.9102]
[1741564612640,7.9075,126.49,126.41,20.27480197]
[1741564612940,0.05794528,126.46,126.44,0.05500085]
[1741564613341,0.05794528,126.46,126.44,7.96500085]
[1741564615051,0.05794528,126.46,126.45,7.9096]
[1741564615256,192.0,126.53,126.44,0.05500085]
[1741564615451,192.0,126.53,126.43,20.27480197]
[1741564615452,34.66,126.51,126.43,20.27480197]
[1741564615648,7.9074,126.49,126.44,7.9099]
[1741564616347,0.05893522,126.48,126.45,0.05441927]
[1741564617555,0.05893522,126.48,126.46,7.9087]
[1741564618155,0.05893522,126.48,126.47,7.9084]
[1741564618845,0.05893522,126.48,126.46,4.2257]
[1741564619450,7.96703522,126.48,126.46,4.2257]
[1741564619853,0.05893522,126.48,126.46,4.2257]
[1741564620055,0.05893522,126.48,126.46,12.1343]
[1741564620449,0.05893522,126.48,126.46,4.2257]
[1741564620656,7.96683522,126.48,126.46,4.2257]
[1741564620859,0.05893522,126.48,126.46,4.2257]
[1741564621955,0.05893522,126.48,126.47,7.9084]
[1741564622850,0.05893522,126.48,126.46,4.2257]
[1741564623055,34.64,126.51,126.46,4.2257]
[1741564623250,192.0,126.53,126.46,8.2644]
[1741564623453,47.85289901,126.57,126.51,20.27480197]
[1741564623658,47.85289901,126.57,126.52,4.0758]
[1741564623861,34.64,126.55,126.47,315.83480197]
[1741564624054,20.27480197,126.52,126.47,264.9958]
[1741564624257,34.64,126.51,126.5,0.05982808]
[1741564624558,7.9078,126.48,126.47,260.92]
[1741564624761,7.9078,126.48,126.42,8.1145]
[1741564625061,42.5486,126.47,126.42,8.1145]
[1741564625454,34.64,126.47,126.42,8.1145]
[1741564625659,0.0592285,126.46,126.43,0.05449275]
[1741564627055,192.0,126.52,126.43,0.05449275]
[1741564627360,212.27480197,126.57,126.47,20.27480197]
[1741564627562,212.27480197,126.57,126.44,34.64]
[1741564627563,43.39591216,126.55,126.49,20.27480197]
[1741564627764,34.64,126.54,126.47,20.27480197]
[1741564628061,34.64,126.54,126.48,7.9072]
[1741564628261,34.64,126.54,126.47,20.27480197]
[1741564628262,0.05347483,126.52,126.49,0.054796]
[1741564628456,59.01620197,126.54,126.49,0.054796]
[1741564628665,0.05463247,126.52,126.49,0.054796]
[1741564628856,7.96033247,126.52,126.49,0.054796]
[1741564629257,0.05463247,126.52,126.49,0.054796]
[1741564629464,7.95993247,126.52,126.49,0.054796]
[1741564629763,11.96463247,126.52,126.49,0.054796]
[1741564630461,4.05933247,126.52,126.49,0.054796]
[1741564633167,0.05463247,126.52,126.49,0.054796]
[1741564633368,226.62,126.57,126.51,20.27480197]
[1741564633559,83.20514259,126.58,126.53,20.27480197]
[1741564633765,117.82514259,126.58,126.56,7.9025]
[1741564633964,102.53283578,126.58,126.5,4.0084]
[1741564634168,102.53283578,126.58,126.51,20.27480197]
[1741564634371,102.53283578,126.58,126.52,7.905]
[1741564634668,102.53283578,126.58,126.53,0.05374257]
[1741564635072,34.62,126.58,126.53,0.05374257]
[1741564635568,7.9026,126.57,126.53,0.05374257]
[1741564636268,34.62,126.58,126.53,0.05374257]
[1741564638369,7.9022,126.57,126.53,0.05374257]
[1741564639069,42.5218,126.58,126.53,0.05374257]
[1741564639269,34.62,126.58,126.53,0.05374257]
[1741564639770,42.5221,126.58,126.53,0.05374257]
[1741564640067,34.62,126.58,126.53,0.05374257]
[1741564640669,4.1451,126.6,126.53,0.05374257]
[1741564640870,7.9025,126.57,126.53,0.05374257]
[1741564641566,7.9028,126.56,126.53,0.05374257]
[1741564641867,34.6,126.55,126.53,0.05374257]
[1741564643866,42.5036,126.55,126.53,0.05374257]
[1741564644365,34.6,126.55,126.53,0.05374257]
[1741564644563,7.904,126.54,126.53,0.05374257]
[1741564645571,192.0,126.54,126.49,260.9]
[1741564645771,192.0,126.54,126.45,7.9092]
[1741564645976,7.907,126.5,126.44,4.0945]
[1741564646272,7.907,126.5,126.44,12.0045]
[1741564646473,42.4863,126.51,126.44,4.0945]
[1741564646674,0.05374257,126.48,126.46,0.05689239]
[1741564647680,34.58,126.47,126.46,0.05689239]
[1741564648175,42.4884,126.47,126.46,0.05689239]
[1741564648368,34.58,126.47,126.46,0.05689239]
[1741564648866,0.05374257,126.48,126.46,0.05689239]
[1741564649665,0.05374257,126.48,126.46,7.96549239]
[1741564649876,0.05374257,126.48,126.46,0.05689239]
[1741564650078,42.4849,126.53,126.48,7.9075]
[1741564650469,34.58,126.53,126.44,8.2593]
[1741564650670,7.9059,126.51,126.44,8.2593]
[1741564651070,34.58,126.52,126.44,8.2593]
[1741564651269,42.4855,126.52,126.46,0.0600564]
[1741564651666,34.58,126.52,126.49,7.9071]
[1741564651867,7.9049,126.53,126.49,7.9071]
[1741564652066,7.9049,126.53,126.49,7.96477395]
[1741564652379,226.58,126.54,126.49,0.05767395]
[1741564652572,7.9054,126.52,126.49,0.05767395]
[1741564652769,226.58,126.54,126.49,0.05767395]
[1741564653174,7.9065,126.5,126.49,0.05767395]
[1741564653375,42.4865,126.5,126.49,0.05767395]
[1741564659175,34.56,126.52,126.49,0.05767395]
[1741564659877,4.0591,126.56,126.49,0.05767395]
[1741564659878,281.02085306,126.58,126.51,20.26154856]
[1741564660078,34.56,126.57,126.51,20.26154856]
[1741564660279,7.9037,126.55,126.53,0.05229328]
[1741564661073,7.904,126.54,126.53,0.05229328]
[1741564661277,34.56,126.57,126.53,0.05229328]
[1741564662183,7.904,126.54,126.53,0.05229328]
[1741564662882,7.9035,126.55,126.53,0.05229328]
[1741564663282,7.904,126.54,126.53,0.05229328]
[1741564663480,34.56,126.57,126.47,32.37816114]
[1741564663675,229.97716114,126.56,126.46,8.0864]
[1741564663873,229.97716114,126.56,126.48,7.9074]
[1741564663874,7.9046,126.53,126.48,7.9074]
[1741564664075,34.56,126.52,126.46,8.0864]
[1741564664580,0.05229328,126.5,126.48,0.05421991]
[1741564664786,34.56,126.52,126.48,0.05421991]
[1741564664985,34.56,126.52,126.51,7.9059]
[1741564665587,34.54,126.55,126.51,7.9059]
[1741564665886,42.4434,126.55,126.51,7.9059]
[1741564666086,42.4434,126.55,126.52,0.05591254]
[1741564667283,42.4434,126.55,126.52,7.96101254]
[1741564667784,34.54,126.55,126.52,7.96101254]
[1741564667986,34.54,126.55,126.53,7.9046]
[1741564668192,34.54,126.55,126.52,0.05591254]
[1741564669487,34.54,126.55,126.53,7.9043]
[1741564670898,34.54,126.55,126.52,0.05591254]
[1741564671394,192.0,126.56,126.55,7.9034]
[1741564671601,192.0,126.56,126.52,0.05591254]
[1741564672001,192.0,126.56,126.55,7.9034]
[1741564672197,34.54,126.58,126.55,7.9034]
[1741564672404,42.4419,126.58,126.55,7.9034]
[1741564672606,42.4419,126.58,126.55,7.9533479]
[1741564672799,7.9019,126.58,126.55,0.0499479]
[1741564673001,34.52,126.58,126.56,7.9023]
[1741564673701,42.4215,126.58,126.55,7.9530479]
[1741564674203,7.9015,126.58,126.55,7.9530479]
[1741564674507,7.9015,126.58,126.56,7.9027]
[1741564675005,7.9022,126.57,126.55,0.0499479]
[1741564676505,7.9028,126.56,126.55,0.0499479]
[1741564677806,7.9024,126.57,126.55,0.0499479]
[1741564678104,34.52,126.59,126.55,0.0499479]
[1741564678295,7.9018,126.58,126.55,7.9528479]
[1741564679303,42.4213,126.59,126.56,7.9027]
[1741564679602,42.4213,126.59,126.55,0.0499479]
[1741564679805,42.4213,126.59,126.55,7.9528479]
[1741564680205,7.9016,126.58,126.55,7.9528479]
[1741564680404,34.52,126.59,126.55,0.0499479]
[1741564680598,54.75356417,126.59,126.55,0.0499479]
[1741564680910,7.9028,126.56,126.55,0.0499479]
[1741564681905,38.6584,126.59,126.55,0.0499479]
[1741564682106,7.9027,126.57,126.55,0.0499479]
[1741564682709,7.9028,126.56,126.55,0.0499479]
[1741564683105,38.6584,126.59,126.51,268.7256]
[1741564683310,7.905,126.53,126.51,260.82]
[1741564683507,34.5,126.54,126.51,260.82]
[1741564683703,54.73356417,126.54,126.46,20.23356417]
[1741564683905,3.9498,126.53,126.46,20.23356417]
[1741564684206,0.0499479,126.51,126.48,0.05795687]
[1741564684707,34.5,126.5,126.48,0.05795687]
[1741564685408,34.5,126.5,126.48,20.29152104]
[1741564685715,0.0499479,126.51,126.48,20.29152104]
[1741564685914,0.0499479,126.51,126.5,7.9065]
[1741564686214,34.5,126.56,126.5,20.23356417]
[1741564686414,34.5,126.56,126.51,7.9056]
[1741564686713,34.5,126.56,126.49,8.1677]
[1741564687108,7.9044,126.54,126.5,7.906]
[1741564687308,34.5,126.56,126.52,0.05754971]
[1741564688509,42.4028,126.56,126.53,7.9045]
[1741564688715,42.4028,126.56,126.52,0.05754971]
[1741564688716,10.84897804,126.62,126.54,20.23356417]
[1741564688911,7.8999,126.61,126.56,7.9023]
[1741564689115,45.34897804,126.62,126.57,0.05783833]
[1741564690219,7.9006,126.6,126.57,0.05783833]
[1741564690714,7.9015,126.58,126.57,0.05783833]
[1741564691019,42.3815,126.58,126.57,0.05783833]
[1741564693717,34.48,126.58,126.49,293.31806417]
[1741564693920,212.23356417,126.57,126.49,269.1593]
[1741564694111,212.23356417,126.57,126.51,7.9058]
[1741564694311,7.9038,126.55,126.51,7.9058]
[1741564694523,34.48,126.54,126.49,269.1593]
[1741564694714,34.48,126.54,126.52,7.905]
[1741564694916,0.05783833,126.53,126.52,7.905]
[1741564696422,0.05783833,126.53,126.51,7.9056]
[1741564696720,0.05783833,126.53,126.5,0.05948913]
[1741564696921,0.05783833,126.53,126.52,7.9053]
[1741564697918,0.05783833,126.53,126.5,7.96568913]
[1741564698424,0.05783833,126.53,126.51,7.9059]
[1741564699124,0.05783833,126.53,126.52,7.9053]
[1741564699621,0.05783833,126.53,126.51,7.9056]
[1741564700417,0.05783833,126.53,126.5,7.96568913]
[1741564700827,0.05783833,126.53,126.5,0.05948913]
[1741564701119,0.05783833,126.53,126.52,7.9053]
[1741564704026,0.05783833,126.53,126.51,7.9056]
[1741564704219,0.05783833,126.53,126.5,4.01568913]
[1741564704920,0.05783833,126.53,126.51,7.9056]
[1741564705120,0.05783833,126.53,126.5,4.01568913]
[1741564706422,0.05783833,126.53,126.52,7.9053]
[1741564707329,34.44,126.56,126.54,7.9036]
[1741564707719,42.3428,126.56,126.54,7.9036]
[1741564707924,42.3428,126.56,126.53,7.9043]
[1741564708119,34.44,126.56,126.5,36.34772094]
[1741564708324,34.44,126.56,126.52,0.05589177]
[1741564708731,7.9037,126.55,126.52,0.05589177]
[1741564709031,34.44,126.56,126.52,0.05589177]
[1741564709225,7.9043,126.54,126.52,0.05589177]
[1741564709929,34.44,126.56,126.52,7.96099177]
[1741564710129,7.9037,126.55,126.52,7.96099177]
[1741564710533,7.9037,126.55,126.53,7.9046]
[1741564710732,42.3431,126.56,126.53,7.9046]
[1741564710930,34.44,126.56,126.52,0.05589177]
[1741564713033,7.9035,126.55,126.52,0.05589177]
[1741564713235,7.9035,126.55,126.52,7.96079177]
[1741564713936,34.44,126.56,126.52,0.05589177]
[1741564714729,7.9043,126.54,126.52,0.05589177]
[1741564715235,7.9046,126.53,126.52,0.05589177]
[1741564715536,20.2466716,126.54,126.46,3.9012]
[1741564715930,192.0,126.53,126.45,20.2466716]
[1741564716136,34.42,126.52,126.44,3.8271]
[1741564716636,0.05569099,126.49,126.47,0.05359921]
[1741564717025,7.96339099,126.49,126.47,0.05359921]
[1741564717224,34.42,126.48,126.47,0.05359921]
[1741564717425,34.42,126.48,126.42,268.9165]
[1741564717631,7.9092,126.46,126.42,272.9572]
[1741564717934,34.42,126.48,126.42,265.0461]
[1741564718334,34.42,126.48,126.42,272.9574]
[1741564718737,0.05182754,126.46,126.44,0.05537881]
[1741564718936,7.96122754,126.46,126.44,0.05537881]
[1741564719438,7.9096,126.45,126.44,0.05537881]
[1741564720630,20.29849914,126.46,126.39,3.8581]
[1741564720828,7.9116,126.42,126.38,4.0563]
[1741564721237,7.9125,126.41,126.37,12.1124]
[1741564721733,7.9125,126.41,126.37,4.198]
[1741564722033,0.05112245,126.4,126.38,0.06093303]
[1741564723838,0.05112245,126.4,126.38,7.97453303]
[1741564724036,0.05112245,126.4,126.38,20.30760463]
[1741564724239,0.05112245,126.4,126.39,7.9134]
[1741564724448,0.05112245,126.4,126.38,0.06093303]
[1741564725036,34.42,126.43,126.38,0.06093303]
[1741564725037,195.8312,126.47,126.38,20.30760463]
[1741564725244,34.42,126.44,126.4,20.2466716]
[1741564725641,34.42,126.44,126.43,7.9109]
[1741564725942,34.42,126.44,126.38,20.2466716]
[1741564726144,34.42,126.44,126.36,54.6666716]
[1741564726344,0.05801839,126.42,126.4,0.05116463]
[1741564726951,7.9121,126.41,126.4,0.05116463]
[1741564728255,7.9145,126.38,126.35,260.88]
[1741564728454,34.42,126.38,126.35,260.88]
[1741564728654,7.9146,126.37,126.35,260.88]
[1741564728853,34.42,126.38,126.33,7.917]
[1741564729254,7.96514616,126.37,126.34,0.05511953]
[1741564729452,0.04994616,126.37,126.34,0.05511953]
[1741564729653,7.9154,126.36,126.34,0.05511953]
[1741564729958,0.04994616,126.37,126.34,0.05511953]
[1741564731253,34.42,126.36,126.34,0.05511953]
[1741564731657,0.04994616,126.37,126.36,7.9153]
[1741564732954,0.04994616,126.37,126.34,0.05511953]
[1741564733656,0.04994616,126.37,126.34,7.97121953]
[1741564733865,7.96454616,126.37,126.34,7.97121953]
[1741564734160,0.04994616,126.37,126.34,7.97121953]
[1741564734552,0.04994616,126.37,126.34,0.05511953]
[1741564735057,0.04994616,126.37,126.34,7.97131953]
[1741564735357,0.04994616,126.37,126.34,0.05511953]
[1741564736757,0.04994616,126.37,126.35,7.9154]
[1741564736961,0.04994616,126.37,126.34,0.05511953]
[1741564739565,0.04994616,126.37,126.35,7.9154]
[1741564739760,0.04994616,126.37,126.34,0.05511953]
[1741564740257,0.04994616,126.37,126.35,7.9158]
[1741564740470,0.04994616,126.37,126.34,0.05511953]
[1741564741162,7.96494616,126.37,126.34,0.05511953]
[1741564741364,0.04994616,126.37,126.34,0.05511953]
[1741564741759,20.2466716,126.36,126.34,0.05511953]
[1741564741967,34.4,126.35,126.29,4.2148]
[1741564742467,34.4,126.35,126.28,3.9947]
[1741564742670,38.2262,126.35,126.26,24.2700716]
[1741564743063,0.05651554,126.32,126.3,0.0574757]
[1741564743267,34.4,126.31,126.3,0.0574757]
[1741564748169,34.4,126.31,126.3,7.9764757]
[1741564748671,34.45651554,126.32,126.3,0.0574757]
[1741564748869,34.4,126.31,126.3,0.0574757]
[1741564749168,42.3184,126.31,126.3,0.0574757]
[1741564749365,0.05651554,126.32,126.3,0.0574757]
[1741564749564,34.4,126.31,126.3,0.0574757]
[1741564750967,34.4,126.31,126.3,7.9764757]
[1741564751274,34.4,126.31,126.3,0.0574757]
[1741564751572,0.05651554,126.32,126.3,0.0574757]
[1741564751773,34.4,126.31,126.3,7.9764757]
[1741564752074,0.05651554,126.32,126.3,0.0574757]
[1741564752570,34.38,126.34,126.3,0.0574757]
[1741564752768,34.38,126.34,126.3,4.1043757]
[1741564753368,34.38,126.35,126.34,7.9165]
[1741564753569,34.38,126.36,126.34,7.9165]
[1741564753874,34.38,126.36,126.34,7.97085285]
[1741564754770,7.96795867,126.37,126.35,7.9159]
[1741564754975,7.96795867,126.37,126.34,0.05435285]
[1741564754976,0.05315867,126.37,126.34,0.05435285]
[1741564755175,0.05315867,126.37,126.36,7.9153]
[1741564755673,34.38,126.41,126.35,20.2466716]
[1741564755674,34.38,126.41,126.37,7.9143]
[1741564756071,42.2922,126.41,126.37,7.9143]
[1741564756273,34.38,126.41,126.31,24.3216716]